fUSD/lending_fUSD_20240319
["ID","MTS","AMOUNT","RATE_DAILY","PERIOD"]
[319522177,1710823847471,-153.09,0.0005328,2]
[319522178,1710823847480,-222.031913,0.00053298,66]
[319522179,1710823847489,-1349.11154149,0.00053333,120]
[319522180,1710823847517,-690.60504577,0.00053333,120]
[319522181,1710823847563,-2460.98400017,0.00053333,120]
[319522182,1710823847653,-499.29941257,0.00053333,120]
[319522183,1710823847663,-222.031913,0.00053398,65]
[319522184,1710823847672,-10000.0,0.000534,120]
[319522185,1710823847682,-222.031913,0.00053498,64]
[319522186,1710823847691,-4000.0,0.000535,120]
[319522187,1710823847700,-4476.86243815,0.000535,31]
[319522188,1710823847716,-153.09,0.00053531,2]
[319522189,1710823847726,-500.0,0.00053534,120]
[319522190,1710823847741,-500.0,0.00053534,120]
[319522191,1710823847751,-222.031913,0.00053598,69]
[319522192,1710823847761,-1791.76010047,0.00053598,120]
[319522193,1710823847783,-190.43837036,0.00053598,120]
[319522194,1710823847794,-5299.9999166,0.00053598,120]
[319522195,1710823847821,-858.59884287,0.00053598,120]
[319522196,1710823847831,-3569.78089163,0.00053598,120]
[319522197,1710823847840,-4323.42296652,0.000536,120]
[319522198,1710823847852,-5676.57703348,0.000536,120]
[319522199,1710823847861,-1221.42568519,0.00053648,14]
[319522200,1710823847871,-500.0,0.00053698,90]
[319522201,1710823847881,-222.031913,0.00053698,69]
[319522202,1710823847902,-222.031913,0.00053798,64]
[319522203,1710823847911,-1272.91808959,0.000538,120]
[319522204,1710823847924,-8727.08191041,0.000538,120]
[319522205,1710823847934,-500.0,0.00053808,120]
[319522206,1710823847943,-500.0,0.00053808,120]
[319522207,1710823847953,-5160.12942794,0.0005388,4]
[319522208,1710823847963,-222.031913,0.00053898,69]
[319522209,1710823847973,-1600.0,0.000539,19]
[319522210,1710823847983,-2044.79336549,0.000539,120]
[319522211,1710823847993,-2044.79336548,0.000539,120]
[319522212,1710823848002,-2044.79336548,0.000539,120]
[319522213,1710823848012,-2044.79336548,0.000539,120]
[319522214,1710823848021,-2044.79336548,0.000539,120]
[319522215,1710823848031,-2044.79336548,0.000539,120]
[319522216,1710823848040,-1932.84684418,0.000539,120]
[319522217,1710823848053,-111.9465213,0.000539,120]
[319522218,1710823848066,-2044.79336548,0.000539,120]
[319522219,1710823848075,-2044.79336548,0.000539,120]
[319522220,1710823848085,-2044.79336548,0.000539,120]
[319522221,1710823848095,-1926.7865424,0.000539,120]
[319522222,1710823848226,-118.00682308,0.000539,120]
[319522223,1710823848236,-2044.79336548,0.000539,120]
[319522224,1710823848246,-2044.79336548,0.000539,120]
[319522225,1710823848255,-2044.79336548,0.000539,120]
[319522226,1710823848265,-2044.79336548,0.000539,120]
[319522227,1710823848274,-2044.79336548,0.000539,120]
[319522228,1710823848284,-2044.79336548,0.000539,120]
[319522229,1710823848293,-4476.86243815,0.0005394,31]
[319522230,1710823848303,-152.69,0.0005399,15]
[319522231,1710823848316,-153.07,0.0005399,15]
[319522232,1710823848325,-151.48,0.0005399,15]
[319522233,1710823848335,-154.38,0.0005399,15]
[319522234,1710823848344,-150.89,0.0005399,15]
[319522235,1710823848354,-782.6279315,0.00053998,4]
[319522236,1710823848363,-484.03196119,0.00053998,4]
[319522237,1710823848372,-11327.93828767,0.00053998,4]
[319522238,1710823848382,-3040.27810605,0.00053998,25]
[319522239,1710823848391,-222.031913,0.00053998,68]
[319522240,1710823848401,-155.0,0.00053999,4]
[319522241,1710823848410,-1234.53,0.00053999,120]
[319522242,1710823848420,-1234.53,0.00053999,120]
[319522243,1710823848429,-8903.73792217,0.00054,120]
[319522247,1710823870349,11000.0,0.00014,2]
[319522248,1710823870378,1084539.63351873,0.00014,2]
[319522249,1710823916438,1029.50869994,0.00014,2]
[319522250,1710823984024,10634.15153343,0.00015,2]
[319522251,1710824037503,386215.45700661,0.00014,2]
[319522254,1710824058558,997.84507756,0.00012,30]
[319522258,1710824298084,-300.0,0.00017888,2]
[319522259,1710824298117,-150.0,0.00017888,2]
[319522260,1710824298148,-1550.0,0.00017889,2]
[319522261,1710824298734,-2000.0,0.00017889,2]
[319522262,1710824299222,-2000.0,0.00017889,2]
[319522263,1710824300899,-2000.0,0.00017889,2]
[319522338,1710825031815,-267.70426699,0.00017883,2]
[319522341,1710825031830,-155.0,0.00017884,2]
[319522343,1710825031840,-127.66736061,0.00017888,2]
[319522344,1710825032052,-27.33263939,0.00017888,2]
[319522345,1710825032061,-3240.01925606,0.00017889,2]
[319522346,1710825032071,-155.86035144,0.000186,2]
[319522347,1710825032081,-273.38120769,0.00018699,2]
[319522348,1710825032093,-5532.68568193,0.000187,2]
[319522349,1710825032102,-9123.14836349,0.000187,2]
[319522402,1710825037835,-8094.34405363,0.000187,2]
[319522403,1710825037846,-315.59620055,0.0002,2]
[319522404,1710825037857,-387.64245066,0.0002,2]
[319522405,1710825037868,-685.0,0.000203,2]
[319522406,1710825037879,-7140.55584676,0.000215,3]
[319522407,1710825037890,-36576.48216805,0.00021796,3]
[319522408,1710825037904,-276.93,0.00021796,2]
[319522409,1710825037915,-458.28954209,0.000218,5]
[319522410,1710825037926,-15952.23589679,0.00022894,2]
[319522411,1710825037936,-4583.93339447,0.00022894,2]
[319522412,1710825037947,-303.95093504,0.00022894,7]
[319522413,1710825037958,-1081.09602026,0.00025,4]
[319522414,1710825037974,-4526.05,0.00025,2]
[319522415,1710825037985,-150.0,0.00027236,2]
[319522416,1710825037996,-150.0,0.00027236,2]
[319522417,1710825038008,-150.0,0.00027236,2]
[319522418,1710825038020,-367.66,0.00027236,2]
[319522419,1710825038031,-342.67,0.00027236,2]
[319522420,1710825038044,-693.56,0.00027236,2]
[319522421,1710825038060,-300.0,0.00027236,2]
[319522422,1710825038071,-747.37,0.00027236,2]
[319522423,1710825038081,-150.0,0.00027236,2]
[319522424,1710825038094,-300.69,0.00027236,2]
[319522425,1710825038108,-150.0,0.00027236,2]
[319522426,1710825038119,-300.0,0.00027236,2]
[319522427,1710825038130,-150.0,0.00027236,2]
[319522428,1710825038140,-150.0,0.00027236,2]
[319522429,1710825038161,-150.0,0.00027236,2]
[319522430,1710825038179,-150.0,0.00027236,2]
[319522431,1710825038190,-356.15,0.00027236,2]
[319522433,1710825038201,-415.02,0.00027236,2]
[319522436,1710825038215,-415.02,0.00027236,2]
[319522437,1710825038225,-415.02,0.00027236,2]
[319522440,1710825038236,-404.12,0.00027473,2]
[319522442,1710825038246,-150.0,0.00027473,2]
[319522444,1710825038256,-150.0,0.00027473,2]
[319522446,1710825038266,-150.0,0.00027473,2]
[319522448,1710825038276,-187.8324566,0.0003,4]
[319522449,1710825038286,-30194.01613455,0.0003,7]
[319522452,1710825038297,-152.11,0.00031848,2]
[319522454,1710825038307,-604.96,0.00032185,2]
[319522456,1710825038317,-160.51,0.00032429,10]
[319522458,1710825038328,-161.66,0.00032676,2]
[319522460,1710825038338,-15589.13641292,0.000328,2]
[319522462,1710825038347,-171.74,0.00032835,2]
[319522464,1710825038357,-250.0,0.00032848,2]
[319522465,1710825038367,-201.96,0.00032899,2]
[319522468,1710825038377,-182.74,0.00032925,2]
[319522470,1710825038387,-185.32,0.0003313,2]
[319522471,1710825038398,-4179.92,0.00033353,2]
[319522474,1710825038408,-1000.0,0.00033373,2]
[319522476,1710825038418,-250.0,0.00033484,2]
[319522478,1710825038428,-152.73,0.000335,2]
[319522480,1710825038438,-152.73,0.000335,2]
[319522482,1710825038447,-152.73,0.000335,2]
[319522484,1710825038456,-152.73,0.000335,2]
[319522486,1710825038468,-152.73,0.000335,2]
[319522488,1710825038478,-152.73,0.000335,2]
[319522490,1710825038487,-152.73,0.000335,2]
[319522492,1710825038496,-152.73,0.000335,2]
[319522494,1710825038506,-152.73,0.000335,2]
[319522496,1710825038515,-152.73,0.000335,2]
[319522498,1710825038525,-152.73,0.000335,2]
[319522500,1710825038534,-152.73,0.000335,2]
[319522502,1710825038544,-250.0,0.00033766,2]
[319522504,1710825038554,-179.27,0.00033895,2]
[319522506,1710825038563,-150.73,0.00033969,2]
[319522508,1710825038575,-179.27,0.00033988,2]
[319522510,1710825038585,-3929.0,0.00034031,2]
[319522512,1710825038594,-179.27,0.00034081,2]
[319522514,1710825038606,-150.73,0.00034094,2]
[319522516,1710825038616,-179.27,0.00034174,2]
[319522518,1710825038625,-150.73,0.00034219,2]
[319522520,1710825038635,-179.27,0.00034267,2]
[319522522,1710825038644,-150.73,0.00034345,2]
[319522524,1710825038654,-179.27,0.0003436,2]
[319522526,1710825038664,-179.27,0.00034453,2]
[319522528,1710825038674,-150.73,0.0003447,2]
[319522531,1710825038684,-179.27,0.00034546,2]
[319522533,1710825038694,-150.73,0.00034595,2]
[319522535,1710825038703,-179.27,0.00034639,2]
[319522537,1710825038714,-150.73,0.0003472,2]
[319522538,1710825038725,-179.27,0.00034732,2]
[319522541,1710825038734,-277.38,0.00034732,2]
[319522542,1710825038744,-179.27,0.00034825,2]
[319522544,1710825038754,-150.73,0.00034845,2]
[319522546,1710825038764,-179.27,0.00034918,2]
[319522549,1710825038774,-152.11,0.00034921,2]
[319522551,1710825038784,-150.73,0.0003497,2]
[319522553,1710825038794,-179.27,0.00035011,2]
[319522555,1710825038803,-150.73,0.00035096,2]
[319522557,1710825038813,-179.27,0.00035104,2]
[319522559,1710825038823,-179.27,0.00035197,2]
[319522560,1710825038833,-150.73,0.00035221,2]
[319522563,1710825038843,-179.27,0.0003529,2]
[319522565,1710825038853,-150.73,0.00035346,2]
[319522566,1710825038862,-179.27,0.00035383,2]
[319522569,1710825038874,-150.73,0.00035471,2]
[319522571,1710825038883,-179.27,0.00035476,2]
[319522573,1710825038892,-179.27,0.00035569,2]
[319522575,1710825038901,-150.73,0.00035596,2]
[319522577,1710825038910,-201.96,0.00035638,2]
[319522579,1710825038920,-179.27,0.00035662,2]
[319522581,1710825038929,-150.73,0.00035721,2]
[319522583,1710825038939,-150.73,0.00035846,2]
[319522585,1710825038948,-150.73,0.00035972,2]
[319522587,1710825038957,-150.73,0.00036097,2]
[319522588,1710825038968,-151.59,0.00036165,120]
[319522591,1710825038978,-604.96,0.00036208,2]
[319522593,1710825038988,-150.73,0.00036222,2]
[319522595,1710825038998,-150.73,0.00036347,2]
[319522596,1710825039007,-3777.29,0.0003678,2]
[319522598,1710825039018,-155.07365584,0.00036879,4]
[319522601,1710825039028,-90898.30658661,0.0003688,2]
[319522603,1710825039037,-152.73,0.000371,3]
[319522605,1710825039052,-152.73,0.000371,3]
[319522607,1710825039062,-152.73,0.000371,3]
[319522609,1710825039071,-152.73,0.000371,3]
[319522611,1710825039081,-152.73,0.000371,3]
[319522613,1710825039092,-152.73,0.000371,3]
[319522615,1710825039102,-152.73,0.000371,3]
[319522617,1710825039111,-152.73,0.000371,3]
[319522619,1710825039121,-152.73,0.000371,3]
[319522621,1710825039131,-152.73,0.000371,3]
[319522623,1710825039143,-152.73,0.000371,3]
[319522625,1710825039153,-152.73,0.000371,3]
[319522627,1710825039164,-169.281994,0.00037132,2]
[319522629,1710825039174,-186.51279,0.00037132,2]
[319522631,1710825039185,-152.11,0.00037993,2]
[319522633,1710825039195,-150.68926374,0.00038012,7]
[319522635,1710825039205,-201.96,0.00038378,2]
[319522637,1710825039217,-4044.22426239,0.000389,15]
[319522639,1710825039226,-16698.3114615,0.00039499,2]
[319522642,1710825039244,-360.96017206,0.00039499,2]
[319522644,1710825039255,-293.24869686,0.00039499,2]
[319522646,1710825039266,-716.53939924,0.00039499,2]
[319522649,1710825039291,-3834.17927034,0.00039499,2]
[319522651,1710825039301,-6911.94349789,0.000396,2]
[319522653,1710825039310,-543.04196285,0.000398,9]
[319522655,1710825039320,-613.36981628,0.000399,2]
[319522657,1710825039329,-613.36981626,0.000399,2]
[319522659,1710825039339,-176.51676772,0.000399,2]
[319522662,1710825039361,-436.85304854,0.000399,2]
[319522664,1710825039371,-398.69,0.0004,10]
[319522665,1710825039381,-387.64201907,0.0004001,15]
[319522666,1710825039390,-604.96,0.00040232,2]
[319522667,1710825039401,-152.73,0.000406,4]
[319522668,1710825039411,-152.73,0.000406,4]
[319522669,1710825039423,-152.73,0.000406,4]
[319522670,1710825039433,-152.73,0.000406,4]
[319522671,1710825039445,-152.73,0.000406,4]
[319522672,1710825039456,-152.73,0.000406,4]
[319522674,1710825039472,-152.73,0.000406,4]
[319522676,1710825039484,-152.73,0.000406,4]
[319522678,1710825039496,-152.73,0.000406,4]
[319522680,1710825039509,-152.73,0.000406,4]
[319522682,1710825039521,-152.73,0.000406,4]
[319522684,1710825039532,-152.73,0.000406,4]
[319522709,1710825039753,-613.36981626,0.00040673,3]
[319522711,1710825039766,-152.11,0.00041065,2]
[319522713,1710825039777,-183.0,0.00041096,2]
[319522715,1710825039789,-543.04196278,0.00042045,10]
[319522717,1710825039801,-151.59,0.00042193,120]
[319522719,1710825039813,-613.36981626,0.00043284,5]
[319522727,1710825039898,-165.0,0.00043731,30]
[319522729,1710825039909,-152.11,0.00044138,2]
[319522731,1710825039920,-165.0,0.00044182,30]
[319522733,1710825039932,-152.73,0.000442,5]
[319522735,1710825039943,-152.73,0.000442,5]
[319522737,1710825039954,-152.73,0.000442,5]
[319522740,1710825039973,-152.73,0.000442,5]
[319522742,1710825039986,-152.73,0.000442,5]
[319522744,1710825039998,-152.73,0.000442,5]
[319522746,1710825040010,-152.73,0.000442,5]
[319522748,1710825040021,-152.73,0.000442,5]
[319522750,1710825040033,-152.73,0.000442,5]
[319522752,1710825040048,-152.73,0.000442,5]
[319522754,1710825040059,-152.73,0.000442,5]
[319522755,1710825040071,-152.73,0.000442,5]
[319522757,1710825040082,-604.96,0.00044255,2]
[319522759,1710825040095,-543.04196278,0.0004429,11]
[319522762,1710825040107,-165.0,0.00044632,30]
[319522763,1710825040118,-189.50615744,0.00044818,30]
[319522766,1710825040130,-169.43339483,0.00045,7]
[319522768,1710825040142,-327.12261434,0.00045,4]
[319522770,1710825040153,-165.0,0.00045083,30]
[319522772,1710825040164,-434.0024,0.0004514,30]
[319522774,1710825040178,-152.0,0.00045455,3]
[319522776,1710825040189,-165.0,0.00045534,30]
[319522778,1710825040203,-161.66,0.00045746,2]
[319522780,1710825040217,-613.36981626,0.00045895,7]
[319522782,1710825040229,-544.64676788,0.00045898,4]
[319522784,1710825040241,-277.38,0.00045965,120]
[319522786,1710825040253,-165.0,0.00045985,30]
[319522788,1710825040265,-165.0,0.00046436,30]
[319522791,1710825040282,-543.04196278,0.00046535,12]
[319522793,1710825040293,-1103.0,0.00046887,7]
[319522795,1710825040304,-152.11,0.0004721,2]
[319522797,1710825040315,-1000.0,0.00047671,120]
[319522799,1710825040326,-152.73,0.000478,5]
[319522801,1710825040337,-152.73,0.000478,5]
[319522803,1710825040348,-152.73,0.000478,5]
[319522805,1710825040359,-152.73,0.000478,5]
[319522807,1710825040370,-152.73,0.000478,5]
[319522809,1710825040388,-152.73,0.000478,5]
[319522811,1710825040400,-152.73,0.000478,5]
[319522813,1710825040412,-152.73,0.000478,5]
[319522815,1710825040423,-152.73,0.000478,5]
[319522817,1710825040434,-152.73,0.000478,5]
[319522819,1710825040446,-152.73,0.000478,5]
[319522822,1710825040457,-152.73,0.000478,5]
[319522823,1710825040472,-151.59,0.0004822,120]
[319522825,1710825040483,-604.96,0.00048278,2]
[319522828,1710825040494,-613.36981626,0.00048506,10]
[319522829,1710825040506,-319.65212733,0.00048598,4]
[319522831,1710825040517,-171.93048009,0.00048781,13]
[319522885,1710825041138,-371.11148269,0.00048781,13]
[319522887,1710825041149,-151.031913,0.00049248,75]
[319522889,1710825041161,-151.031913,0.00049348,74]
[319522891,1710825041171,-151.031913,0.00049448,73]
[319522893,1710825041182,-151.031913,0.00049548,70]
[319522896,1710825041193,-151.031913,0.00049648,71]
[319522898,1710825041203,-151.031913,0.00049748,75]
[319522900,1710825041219,-4609.01544404,0.000498,2]
[319522905,1710825041288,-469.34999983,0.000498,2]
[319522907,1710825041302,-1227.90239026,0.000498,2]
[319522909,1710825041313,-300.0,0.000498,18]
[319522911,1710825041324,-151.031913,0.00049848,76]
[319522912,1710825041341,-150.93,0.0004989,2]
[319522914,1710825041353,-1768.40574226,0.000499,2]
[319522926,1710825041487,-7803.45081633,0.000499,2]
[319523080,1710825043327,-3144.80360379,0.000499,2]
[319523103,1710825043519,-656.25,0.000499,2]
[319523266,1710825046329,-306.0704712,0.00025,10]
[319523268,1710825046343,-2.63835002,0.0004878,4]
[319523623,1710826178210,-155.0,0.00013999,2]
[319523624,1710826178239,-1000.0,0.00014,2]
[319523625,1710826178270,-750.0,0.00017,3]
[319523626,1710826178300,-155.86035144,0.00017789,2]
[319523627,1710826178330,-155.08448585,0.00017889,2]
[319523645,1710826233156,-571.1656644,0.0002,2]
[319523646,1710826233312,-428.8343356,0.0002,2]
[319523647,1710826233322,-1196.6645394,0.00022895,60]
[319523648,1710826233444,-3232.4454606,0.00022895,60]
[319523649,1710826233456,-12.6045394,0.00022895,60]
[319523686,1710826238670,-4416.5054606,0.00022895,60]
[319523688,1710826238680,-4429.11,0.00022895,60]
[319523690,1710826238690,-4429.11,0.00022895,60]
[319523693,1710826238700,-4429.11,0.00022895,60]
[319523696,1710826238710,-4429.11,0.00022895,60]
[319523699,1710826238720,-4429.11,0.00022895,60]
[319523703,1710826238730,-4429.11,0.00022895,60]
[319523705,1710826238739,-4429.11,0.00022895,60]
[319523709,1710826238753,-4429.11,0.00022895,60]
[319523712,1710826238763,-4429.11,0.00022895,60]
[319523715,1710826238773,-4429.11,0.00022895,60]
[319523717,1710826238783,-4429.11,0.00022895,60]
[319523720,1710826238793,-4429.11,0.00022895,60]
[319523723,1710826238802,-4429.11,0.00022895,60]
[319523726,1710826238812,-3005.0645394,0.00022895,60]
[319523730,1710826238824,-817.9,0.00022895,60]
[319523758,1710826239172,-506.635,0.00022895,60]
[319523759,1710826239185,-99.5104606,0.00022895,60]
[319523760,1710826239195,-184.63981846,0.00022895,60]
[319523807,1710826243045,-998.89653531,0.00022895,60]
[319523813,1710826243074,-3245.57364623,0.00022895,60]
[319523815,1710826243085,-1640.14148715,0.00022895,60]
[319523821,1710826243117,-2788.96851285,0.00022895,60]
[319523823,1710826243127,-4429.11,0.00022895,60]
[319523825,1710826243136,-4429.11,0.00022895,60]
[319523827,1710826243147,-4429.11,0.00022895,60]
[319523829,1710826243157,-4429.11,0.00022895,60]
[319523831,1710826243167,-1231.65197995,0.00022895,60]
[319523833,1710826243179,-3197.45802005,0.00022895,60]
[319523835,1710826243189,-4429.32074872,0.00022895,60]
[319523837,1710826243199,-214.74908816,0.0003,4]
[319523839,1710826243209,-6066.6496,0.0003668,2]
[319523841,1710826243219,-998.88695481,0.00038,120]
[319523842,1710826243230,-4044.22426239,0.00039199,15]
[319523843,1710826243240,-1000.0,0.000392,2]
[319523844,1710826243253,-499.99,0.000392,2]
[319523845,1710826243263,-1252.0,0.00041,120]
[319523846,1710826243273,-157.81,0.00044396,2]
[319523847,1710826243283,-1252.0,0.00045,120]
[319523848,1710826243294,-261.9548,0.0004514,30]
[319523849,1710826243304,-1463.0,0.00045387,108]
[319523850,1710826243315,-440.86,0.0004607,120]
[319523851,1710826243325,-150.0,0.00046075,2]
[319523852,1710826243336,-150.0,0.00046194,2]
[319523853,1710826243346,-784.04,0.00046204,2]
[319523854,1710826243355,-152.41830901,0.00046223,30]
[319523855,1710826243364,-250.0,0.00046314,2]
[319523856,1710826243375,-165.0,0.00046363,30]
[319523857,1710826243387,-250.0,0.0004639,120]
[319523858,1710826243397,-151.59,0.00046464,120]
[319523860,1710826243406,-160.51,0.00046542,120]
[319523861,1710826243415,-299.99,0.00046566,120]
[319523862,1710826243426,-250.0,0.00046592,110]
[319523863,1710826243436,-5078.62,0.0004661,2]
[319523864,1710826243445,-183.0,0.0004668,2]
[319523865,1710826243455,-360.77,0.00046765,2]
[319523866,1710826243466,-165.0,0.00046841,30]
[319523867,1710826243476,-1252.0,0.00047,120]
[319523868,1710826243485,-165.0,0.00047319,30]
[319523869,1710826243495,-1000.0,0.00047671,120]
[319523870,1710826243507,-165.0,0.00047797,30]
[319523871,1710826243517,-15000.0,0.00048,120]
[319523872,1710826243526,-10020.41363167,0.00048075,4]
[319523873,1710826243535,-3868.84802438,0.000482,7]
[319523874,1710826243548,-2772.66645401,0.000482,7]
[319523875,1710826243568,-737.52,0.000482,7]
[319523876,1710826243583,-328.5102277,0.000482,7]
[319523877,1710826243595,-2509.98499391,0.000482,7]
[319523878,1710826243605,-203.64073606,0.00048248,13]
[319523879,1710826243615,-165.0,0.00048275,30]
[319523880,1710826243624,-56.91258549,0.0004829,2]
[319523881,1710826243637,-94.01741451,0.0004829,2]
[319523882,1710826243647,-150.93,0.0004829,2]
[319523883,1710826243656,-70.1938272,0.00048299,4]
[319523884,1710826243668,-209.78331014,0.00048299,4]
[319523885,1710826243677,-40206.96423987,0.000483,2]
[319523886,1710826243688,-415947.70381338,0.000483,2]
[319523887,1710826243698,-2157.18138472,0.00048348,2]
[319523888,1710826243707,-184.92,0.00048471,120]
[319523889,1710826243717,-180.13,0.00048539,2]
[319523890,1710826243727,-1609.3,0.00048542,117]
[319523891,1710826243737,-150.93,0.00048687,2]
[319523892,1710826243746,-157.81,0.00048697,2]
[319523893,1710826243758,-165.0,0.00048753,30]
[319523894,1710826243768,-387.64201907,0.0004878,15]
[319523895,1710826243777,-169.43339483,0.0004878,7]
[319523896,1710826243791,-3339.15497592,0.0004878,4]
[319523897,1710826243800,-220.55,0.00048987,120]
[319523898,1710826243811,-260.57,0.00049167,60]
[319523899,1710826243820,-165.0,0.00049231,30]
[319523900,1710826243830,-203.64073604,0.00049286,14]
[319523901,1710826243841,-260.57,0.00049304,60]
[319523902,1710826243851,-161.031914,0.00049348,45]
[319523903,1710826243861,-250.0,0.000494,2]
[319523904,1710826243871,-260.57,0.00049441,60]
[319523905,1710826243882,-500.0,0.00049448,2]
[319523906,1710826243892,-161.031914,0.00049448,46]
[319523907,1710826243902,-161.031914,0.00049548,47]
[319523908,1710826243912,-476.26966994,0.00049578,60]
[319523909,1710826243921,-161.031914,0.00049648,48]
[319523910,1710826243931,-161.031914,0.00049748,49]
[319523911,1710826243940,-1480.43040746,0.000498,30]
[319523912,1710826243950,-3408.8298,0.000498,2]
[319523914,1710826243960,-300.0,0.000498,18]
[319523915,1710826243969,-161.031914,0.00049848,50]
[319523917,1710826243979,-484.03196119,0.00049898,4]
[319523918,1710826243989,-189.63733249,0.00049898,4]
[319523919,1710826244001,-212.39660578,0.00049898,4]
[319523920,1710826244011,-11327.93828767,0.00049899,4]
[319523921,1710826244021,-782.6279315,0.00049899,4]
[319523922,1710826244031,-386.11588002,0.00049899,2]
[319523923,1710826244041,-155.0,0.000499,30]
[319523924,1710826244051,-2553.1992,0.000499,2]
[319523925,1710826244061,-190.47272846,0.000499,26]
[319523926,1710826244075,-717.3235,0.000499,2]
[319523927,1710826244085,-1185.65018,0.000499,49]
[319523928,1710826244095,-700.0,0.000499,18]
[319523929,1710826244105,-161.031914,0.00049948,72]
[319523930,1710826244114,-500.0,0.00049972,120]
[319523931,1710826244124,-260.56904188,0.00049972,120]
[319523932,1710826244135,-150.93,0.0004999,2]
[319523933,1710826244146,-150.93,0.0004999,2]
[319523934,1710826244156,-150.93,0.0004999,2]
[319523935,1710826244168,-150.93,0.0004999,2]
[319523936,1710826244179,-150.93,0.0004999,2]
[319523937,1710826244189,-342.89838954,0.00049998,4]
[319523938,1710826244199,-436.68727913,0.00049998,4]
[319523939,1710826244210,-2548.43653527,0.00049998,4]
[319523940,1710826244220,-3040.27810605,0.00049998,20]
[319523941,1710826244231,-4612.35754934,0.00049999,30]
[319523942,1710826244241,-1000.0,0.00049999,120]
[319523943,1710826244256,-1000.0,0.00049999,120]
[319523944,1710826244267,-1000.0,0.00049999,120]
[319523945,1710826244278,-1000.0,0.00049999,120]
[319523946,1710826244288,-1000.0,0.00049999,120]
[319523947,1710826244298,-1317.0,0.0005,7]
[319523948,1710826244309,-427.80435983,0.0005,4]
[319523949,1710826244318,-7371.78065819,0.0005,120]
[319523950,1710826244328,-29201.02673938,0.0005,30]
[319523951,1710826244338,-20000.0,0.0005,120]
[319523952,1710826244348,-20000.0,0.0005,120]
[319523953,1710826244358,-20000.0,0.0005,120]
[319523954,1710826244369,-20000.0,0.0005,120]
[319523955,1710826244383,-20000.0,0.0005,120]
[319523956,1710826244393,-20000.0,0.0005,120]
[319523957,1710826244403,-20000.0,0.0005,120]
[319523958,1710826244413,-20000.0,0.0005,120]
[319523959,1710826244424,-9515.55,0.0005,120]
[319523960,1710826244435,-20000.0,0.0005,120]
[319523961,1710826244445,-20000.0,0.0005,120]
[319523962,1710826244456,-20000.0,0.0005,120]
[319523963,1710826244467,-20000.0,0.0005,120]
[319523964,1710826244476,-1259.0,0.0005,120]
[319523965,1710826244486,-30000.0,0.0005,120]
[319523966,1710826244496,-30000.0,0.0005,120]
[319523967,1710826244509,-30000.0,0.0005,120]
[319523968,1710826244523,-20000.0,0.0005,120]
[319523969,1710826244533,-378941.06085855,0.0005,120]
[319523970,1710826244543,-5492.0,0.0005,120]
[319523971,1710826244553,-705.32,0.0005,120]
[319523972,1710826244563,-152.35407924,0.00050067,44]
[319523973,1710826244573,-4099.63875145,0.00050067,26]
[319523974,1710826244582,-183.17408248,0.000501,39]
[319523975,1710826244593,-150.93,0.00050157,2]
[319523976,1710826244604,-30000.0,0.00050167,120]
[319523977,1710826244614,-10000.0,0.00050167,120]
[319523978,1710826244624,-30000.0,0.00050167,120]